bitfinex/quotes_BTCUSD_20240929
["timestamp","ask_amount","ask_price","bid_price","bid_amount"]
[1727572917573,0.001654,65884.0,65883.0,2.38491213]
[1727572918245,0.001654,65884.0,65883.0,2.4985911]
[1727572918676,0.001654,65884.0,65883.0,2.6503751]
[1727572918925,0.001654,65884.0,65883.0,1.3878751]
[1727572921150,0.001654,65884.0,65883.0,1.38818822]
[1727572922230,0.001654,65884.0,65883.0,1.27449188]
[1727572925167,0.001654,65890.0,65883.0,1.27449188]
[1727572925168,0.001654,65890.0,65889.0,0.26700376]
[1727572925374,0.001654,65890.0,65889.0,1.31868792]
[1727572925590,0.001654,65890.0,65889.0,1.33837287]
[1727572925815,0.001654,65890.0,65889.0,1.33823432]
[1727572926054,0.001654,65890.0,65889.0,1.34174275]
[1727572926307,0.001654,65890.0,65889.0,1.34974275]
[1727572926702,0.001654,65890.0,65889.0,1.4862301]
[1727572927151,0.001654,65890.0,65889.0,2.7607301]
[1727572927385,0.001654,65890.0,65889.0,3.08611041]
[1727572927611,0.001654,65890.0,65889.0,3.09311041]
[1727572927837,0.001654,65892.0,65891.0,0.246265]
[1727572928049,0.001654,65892.0,65891.0,1.59951136]
[1727572928211,0.001654,65892.0,65891.0,1.61613179]
[1727572929463,0.001654,65892.0,65891.0,3.12911973]
[1727572929681,0.001654,65892.0,65891.0,3.14311973]
[1727572929891,0.001654,65894.0,65893.0,0.28399476]
[1727572930107,0.001654,65894.0,65893.0,1.9621744]
[1727572930329,0.001654,65894.0,65893.0,1.98174829]
[1727572930537,0.001654,65894.0,65893.0,3.34424829]
[1727572931186,0.001654,65894.0,65893.0,3.35824829]
[1727572932051,0.001654,65894.0,65893.0,3.37394895]
[1727572932258,0.001654,65894.0,65893.0,3.38794895]
[1727572933839,0.001654,65894.0,65893.0,3.37224829]
[1727572935211,0.001654,65894.0,65893.0,2.98258063]
[1727572935439,0.001654,65894.0,65893.0,3.3706638]
[1727572935648,0.001654,65894.0,65893.0,2.98192043]
[1727572935871,0.001654,65894.0,65893.0,3.3706638]
[1727572936090,0.001656,65895.0,65893.0,3.3706638]
[1727572936091,0.001656,65895.0,65894.0,0.268758]
[1727572936317,0.001656,65895.0,65894.0,1.08188772]
[1727572936504,0.22690658,65903.0,65902.0,0.46007376]
[1727572936736,0.22690658,65903.0,65902.0,2.83766554]
[1727572936956,0.001656,65908.0,65902.0,2.83766554]
[1727572936957,0.001656,65908.0,65905.0,0.005]
[1727572937192,0.001656,65908.0,65905.0,1.34518446]
[1727572937417,0.001656,65908.0,65905.0,1.3667044]
[1727572938314,0.001656,65908.0,65905.0,1.3807044]
[1727572938543,0.001656,65908.0,65905.0,1.26727054]
[1727572939012,0.001656,65908.0,65905.0,1.28127054]
[1727572939688,0.001656,65908.0,65905.0,2.54377054]
[1727572940125,0.45461258,65917.0,65909.0,0.26695776]
[1727572940338,0.45461258,65917.0,65909.0,0.99438969]
[1727572940558,0.30290658,65917.0,65915.0,0.151709]
[1727572940772,0.30290658,65917.0,65916.0,0.68203]
[1727572941004,0.30290658,65917.0,65916.0,0.70153507]
[1727572941220,0.076,65917.0,65916.0,0.70153507]
[1727572942149,0.076,65917.0,65916.0,0.70953507]
[1727572942832,0.227705,65917.0,65916.0,0.70953507]
[1727572945739,0.076,65917.0,65916.0,0.70953507]
[1727572945959,0.227705,65917.0,65916.0,0.70953507]
[1727572947135,0.151705,65917.0,65916.0,0.80043507]
[1727572947351,0.001654,65922.0,65921.0,0.151696]
[1727572947577,0.001654,65922.0,65921.0,1.57951742]
[1727572947811,0.001654,65922.0,65921.0,2.35359805]
[1727572948064,0.001654,65922.0,65921.0,2.55476088]
[1727572948297,0.001654,65922.0,65921.0,2.18859248]
[1727572948508,0.001654,65922.0,65921.0,2.16593341]
[1727572948718,0.001654,65922.0,65921.0,2.16593236]
[1727572948940,0.001654,65922.0,65921.0,2.16593342]
[1727572949177,0.001654,65922.0,65921.0,2.16592091]
[1727572949405,0.001654,65922.0,65921.0,2.12061011]
[1727572949677,0.001654,65922.0,65921.0,2.13461011]
[1727572949915,0.001654,65922.0,65921.0,2.12961011]
[1727572950128,0.001654,65922.0,65921.0,2.14361011]
[1727572950363,0.001654,65922.0,65921.0,1.99191411]
[1727572950582,0.001654,65922.0,65921.0,2.14361011]
[1727572950817,0.001654,65922.0,65921.0,2.25884387]
[1727572951717,0.001654,65922.0,65921.0,0.99634387]
[1727572955005,0.232084,65927.0,65921.0,0.99634387]
[1727572955205,0.232084,65927.0,65924.0,0.11523376]
[1727572955420,0.232084,65927.0,65925.0,0.68197]
[1727572955627,0.232084,65927.0,65925.0,0.70127336]
[1727572955829,0.151685,65926.0,65925.0,0.70127336]
[1727572957073,0.151685,65926.0,65925.0,0.71227336]
[1727572957527,0.151685,65926.0,65925.0,0.70127336]
[1727572958371,0.151685,65926.0,65925.0,0.71327336]
[1727572958633,0.151685,65926.0,65925.0,0.70127336]
[1727572959058,0.151685,65926.0,65925.0,0.72627336]
[1727572963773,0.152512,65926.0,65925.0,0.72627336]
[1727572967329,0.249812,65926.0,65925.0,0.72627336]
[1727572967775,0.249812,65926.0,65925.0,0.70697]
[1727572967984,0.249812,65926.0,65925.0,0.69497]
[1727572968191,0.249812,65926.0,65925.0,0.71427679]
[1727572968401,0.249812,65926.0,65925.0,0.71627679]
[1727572968615,0.249812,65926.0,65925.0,0.70327679]
[1727572968616,0.25348512,65926.0,65925.0,0.70327679]
[1727572968842,0.25348512,65926.0,65925.0,0.70127679]
[1727572969264,0.25348512,65926.0,65925.0,0.70327679]
[1727572969482,0.25348512,65926.0,65925.0,0.70527679]
[1727572969687,0.25348512,65926.0,65925.0,0.70327679]
[1727572970176,0.249812,65926.0,65925.0,0.70527679]
[1727572970610,0.25348512,65926.0,65925.0,0.70527679]
[1727572975920,0.66821489,65926.0,65925.0,0.70527679]
[1727572976134,0.54014576,65926.0,65925.0,0.70527679]
[1727572976578,0.56314576,65926.0,65925.0,0.70527679]
[1727572976804,0.56314576,65926.0,65925.0,0.70127679]
[1727572977255,0.56314576,65926.0,65925.0,0.70227679]
[1727572977497,0.56314576,65926.0,65925.0,0.70327679]
[1727572978020,0.447912,65926.0,65925.0,0.70327679]
[1727572978703,0.327612,65926.0,65925.0,0.70327679]
[1727572986563,0.58583408,65926.0,65925.0,0.70327679]
[1727572986782,0.58583408,65926.0,65925.0,0.68397]
[1727572987001,0.58583408,65926.0,65925.0,0.68297]
[1727572987241,0.441812,65926.0,65925.0,0.70237501]
[1727572988396,0.4701631,65926.0,65925.0,0.70237501]
[1727572988629,0.4711631,65926.0,65925.0,0.70237501]
[1727572988849,0.4701631,65926.0,65925.0,0.70237501]
[1727572989280,0.4711631,65926.0,65925.0,0.70337501]
[1727572989506,0.4741631,65926.0,65925.0,0.70337501]
[1727572990147,0.4711631,65926.0,65925.0,0.70337501]
[1727572990365,0.4711631,65926.0,65925.0,0.70437501]
[1727572990366,0.4731631,65926.0,65925.0,0.70437501]
[1727572990986,0.44937999,65926.0,65925.0,0.70437501]
[1727572991199,0.44737999,65926.0,65925.0,0.70337501]
[1727572991636,0.45137999,65926.0,65925.0,0.70337501]
[1727572991845,0.45037999,65926.0,65925.0,0.70337501]
[1727572992061,0.45637999,65926.0,65925.0,0.70437501]
[1727572992290,0.45637999,65926.0,65925.0,0.70337501]
[1727572992759,0.46237999,65926.0,65925.0,0.70337501]
[1727572992990,0.46237999,65926.0,65925.0,0.70437501]
[1727572993252,0.61814887,65926.0,65925.0,0.70437501]
[1727572993482,0.60214887,65926.0,65925.0,0.70337501]
[1727572994369,0.61214887,65926.0,65925.0,0.70437501]
[1727572995435,0.62593227,65926.0,65925.0,0.70337501]
[1727572995879,0.62593227,65926.0,65925.0,0.70437501]
[1727572995880,0.60814887,65926.0,65925.0,0.70437501]
[1727572996768,0.61014887,65926.0,65925.0,0.70437501]
[1727572996982,0.60814887,65926.0,65925.0,0.70437501]
[1727572998529,0.63193297,65926.0,65925.0,0.70437501]
[1727572999416,0.48316409,65926.0,65925.0,0.70437501]
[1727573001082,0.36996409,65926.0,65925.0,0.70437501]
[1727573001320,0.48519785,65926.0,65925.0,0.70437501]
[1727573002196,0.43309785,65926.0,65925.0,0.70437501]
[1727573003643,0.42752986,65926.0,65925.0,0.70437501]
[1727573003755,0.3122961,65926.0,65925.0,0.70437501]
[1727573003980,0.265512,65926.0,65925.0,0.70437501]
[1727573005350,0.158512,65926.0,65925.0,0.70337501]
[1727573005570,0.158512,65926.0,65925.0,0.70237501]
[1727573005789,0.156512,65926.0,65925.0,0.70237501]
[1727573006021,0.157512,65926.0,65925.0,0.70237501]
[1727573006234,0.153512,65926.0,65925.0,0.70237501]
[1727573006453,0.154512,65926.0,65925.0,0.70237501]
[1727573007102,0.254512,65926.0,65925.0,0.70237501]
[1727573007537,0.002827,65926.0,65925.0,0.87367501]
[1727573007750,0.002827,65926.0,65925.0,1.09352677]
[1727573007970,0.002827,65926.0,65925.0,1.37737438]
[1727573008194,0.002827,65926.0,65925.0,1.30920962]
[1727573008408,0.001827,65926.0,65925.0,1.42278589]
[1727573009247,0.000827,65926.0,65925.0,1.42278589]
[1727573009463,0.000827,65926.0,65925.0,1.43478589]
[1727573009669,0.000827,65926.0,65925.0,1.44778589]
[1727573012553,0.000827,65926.0,65925.0,1.33420962]
[1727573012991,0.000827,65926.0,65925.0,1.44778589]
[1727573013219,0.000827,65926.0,65925.0,1.44702556]
[1727573013438,0.001654,65937.0,65929.0,0.303353]
[1727573013667,0.22690658,65933.0,65932.0,0.151671]
[1727573013903,0.001654,65937.0,65932.0,0.72739058]
[1727573014118,0.001654,65937.0,65934.0,0.151666]
[1727573014554,0.151662,65936.0,65935.0,0.7003376]
[1727573014997,0.001654,65937.0,65935.0,0.7003376]
[1727573015908,0.001654,65937.0,65935.0,0.7023376]
[1727573016117,0.153315,65937.0,65935.0,0.7053376]
[1727573016392,0.001654,65937.0,65935.0,0.7003376]
[1727573016818,0.153314,65937.0,65935.0,0.7033376]
[1727573017420,0.151662,65936.0,65935.0,0.7033376]
[1727573017629,0.001654,65937.0,65935.0,0.7033376]
[1727573017818,0.151662,65936.0,65935.0,0.7033376]
[1727573018177,0.001654,65937.0,65935.0,0.7033376]
[1727573018625,0.153315,65937.0,65935.0,0.7033376]
[1727573018835,0.151662,65936.0,65935.0,0.7033376]
[1727573019042,0.151662,65936.0,65935.0,0.7023376]
[1727573019249,0.001654,65937.0,65935.0,0.7043376]
[1727573019483,0.151662,65936.0,65935.0,0.7043376]
[1727573021520,0.001654,65937.0,65935.0,0.7003376]
[1727573021735,0.151662,65936.0,65935.0,0.7013376]
[1727573021953,0.151662,65936.0,65935.0,0.7043376]
[1727573022169,0.152489,65936.0,65935.0,0.7033376]
[1727573022602,0.152489,65936.0,65935.0,0.7053376]
[1727573024626,0.15616212,65936.0,65935.0,0.7053376]
[1727573029079,0.152489,65936.0,65935.0,0.7053376]
[1727573030635,0.15616212,65936.0,65935.0,0.7053376]
[1727573037682,0.152489,65936.0,65935.0,0.7053376]
[1727573043560,0.17626537,65936.0,65935.0,0.7053376]
[1727573044897,0.17993849,65936.0,65935.0,0.7053376]
[1727573046712,0.47893849,65936.0,65935.0,0.7053376]
[1727573046937,0.59027769,65936.0,65935.0,0.7053376]
[1727573048458,0.59027769,65936.0,65935.0,0.7003376]
[1727573048900,0.59927769,65936.0,65935.0,0.7003376]
[1727573049353,0.57950132,65936.0,65935.0,0.7003376]
[1727573049632,0.57950132,65936.0,65935.0,0.70951566]
[1727573049866,0.72377615,65936.0,65935.0,0.70951566]
[1727573050111,0.72777615,65936.0,65935.0,0.70951566]
[1727573050320,0.71977615,65936.0,65935.0,0.70951566]
[1727573050535,0.73534389,65936.0,65935.0,0.70951566]
[1727573051391,0.73134389,65936.0,65935.0,0.70951566]
[1727573052062,0.73134389,65936.0,65935.0,0.70262674]
[1727573052287,0.73234389,65936.0,65935.0,0.70362674]
[1727573052511,0.73634389,65936.0,65935.0,0.70362674]
[1727573052942,0.74734389,65936.0,65935.0,0.70462674]
[1727573053855,0.7731244,65936.0,65935.0,0.67422274]
[1727573054073,0.7731244,65936.0,65935.0,0.52220274]
[1727573054074,0.7831244,65936.0,65935.0,0.52220274]
[1727573054762,0.7831244,65936.0,65935.0,0.02266674]
[1727573055200,0.7811244,65936.0,65935.0,0.002]
[1727573055880,0.7831244,65936.0,65935.0,0.002]
[1727573058109,0.75934389,65936.0,65935.0,0.002]
[1727573058576,0.75734389,65936.0,65935.0,0.002]
[1727573060986,0.78112625,65936.0,65935.0,0.002]
[1727573062337,0.75734389,65936.0,65935.0,0.002]
[1727573063463,0.151682,65927.0,65926.0,0.001654]
[1727573063706,0.38969432,65927.0,65926.0,0.001654]
[1727573063968,0.38969432,65927.0,65926.0,0.02241831]
[1727573064182,0.38969432,65927.0,65926.0,0.001654]
[1727573064815,0.39169432,65927.0,65926.0,0.001654]
[1727573065065,0.52286885,65927.0,65926.0,0.001654]
[1727573065736,0.54665171,65927.0,65926.0,0.001654]
[1727573066620,0.52286885,65927.0,65926.0,0.001654]
[1727573069674,0.54665173,65927.0,65926.0,0.001654]
[1727573070110,0.55214216,65927.0,65926.0,0.001654]
[1727573071029,0.52835928,65927.0,65926.0,0.001654]
[1727573072148,0.41334696,65927.0,65926.0,0.001654]
[1727573072362,0.52835928,65927.0,65926.0,0.001654]
[1727573078356,0.55214213,65927.0,65926.0,0.001654]
[1727573079843,0.52835928,65927.0,65926.0,0.001654]
[1727573084180,0.39818475,65927.0,65926.0,0.001654]
[1727573085465,0.28317243,65927.0,65926.0,0.001654]
[1727573085745,0.39818475,65927.0,65926.0,0.001654]
[1727573099724,0.42196781,65927.0,65926.0,0.001654]
[1727573101063,0.39818475,65927.0,65926.0,0.001654]
[1727573103203,0.52900833,65927.0,65926.0,0.001654]
[1727573108673,0.55279149,65927.0,65926.0,0.001654]
[1727573109663,0.30695559,65927.0,65926.0,0.001654]
[1727573109912,0.42196791,65927.0,65926.0,0.001654]
[1727573112336,0.27846516,65927.0,65926.0,0.175654]
[1727573112603,0.254682,65927.0,65926.0,0.175654]
[1727573113029,0.254682,65927.0,65926.0,0.19649778]
[1727573114844,0.154682,65927.0,65926.0,0.19649778]
[1727573115047,0.154682,65927.0,65926.0,0.54704042]
[1727573115287,0.154682,65927.0,65926.0,0.55358085]
[1727573115720,0.152682,65927.0,65926.0,0.54661767]
[1727573115923,0.152682,65927.0,65926.0,0.55261767]
[1727573116136,0.153682,65927.0,65926.0,0.4913072]
[1727573116347,0.153682,65927.0,65926.0,0.6429922]
[1727573116348,0.002,65927.0,65926.0,0.6429922]
[1727573116581,0.002,65927.0,65926.0,0.4913072]
[1727573116800,0.002,65927.0,65926.0,0.64988967]
[1727573117014,0.002,65927.0,65926.0,0.6482192]
[1727573117429,0.303343,65932.0,65927.0,0.0924]
[1727573117430,0.151678,65929.0,65927.0,0.0924]
[1727573117636,0.151678,65929.0,65928.0,0.66012241]
[1727573117856,0.455016,65932.0,65929.0,0.174]
[1727573118068,0.151675,65931.0,65930.0,0.39382853]
[1727573118268,0.151675,65931.0,65930.0,0.57273837]
[1727573118472,0.151675,65931.0,65930.0,0.48184667]
[1727573118684,0.151675,65931.0,65930.0,0.57273399]
[1727573118892,0.151675,65931.0,65930.0,0.56581056]
[1727573119103,0.151675,65931.0,65930.0,0.57253249]
[1727573119339,0.151675,65931.0,65930.0,0.48164489]
[1727573119531,0.151675,65931.0,65930.0,0.57253249]
[1727573119741,0.151675,65931.0,65930.0,0.48164489]
[1727573119962,0.152675,65931.0,65930.0,0.50464489]
[1727573120379,0.001,65931.0,65930.0,0.57037934]
[1727573120637,0.001,65931.0,65930.0,0.57037709]
[1727573120872,0.001,65931.0,65930.0,0.29259764]
[1727573121078,0.001,65931.0,65930.0,0.50222596]
[1727573121289,0.001,65931.0,65930.0,0.26988432]
[1727573121524,0.001,65931.0,65930.0,0.26988287]
[1727573121767,0.001,65931.0,65930.0,0.22449068]
[1727573121984,0.001,65931.0,65930.0,0.2698829]
[1727573121985,0.152673,65931.0,65930.0,0.2698829]
[1727573122401,0.001,65931.0,65930.0,0.2698829]
[1727573122622,0.001,65931.0,65930.0,0.26986909]
[1727573122856,0.152673,65931.0,65930.0,0.26986909]
[1727573123265,0.152673,65931.0,65930.0,0.22449068]
[1727573125654,0.152673,65931.0,65930.0,0.05049068]
[1727573125877,0.32507977,65931.0,65930.0,0.05049068]
[1727573126114,0.32507977,65931.0,65930.0,0.023]
[1727573126560,0.32507977,65931.0,65930.0,0.012]
[1727573126785,0.32507977,65931.0,65926.0,0.094454]
[1727573126786,0.151682,65927.0,65926.0,0.094454]
[1727573127221,0.151682,65927.0,65926.0,0.12197187]
[1727573128111,0.152682,65927.0,65926.0,0.13597187]
[1727573129447,0.153682,65927.0,65926.0,0.14897187]
[1727573131967,0.153682,65927.0,65926.0,0.121454]
[1727573133005,0.153682,65927.0,65926.0,0.14212756]
[1727573133415,0.153682,65927.0,65926.0,0.14902287]
[1727573133831,0.153682,65927.0,65926.0,0.14213066]
[1727573134497,0.153682,65927.0,65926.0,0.14902288]
[1727573134720,0.153682,65927.0,65926.0,0.14213066]
[1727573135141,0.153682,65927.0,65926.0,0.14902288]
[1727573135612,0.153682,65927.0,65926.0,0.14213066]
[1727573136109,0.153682,65927.0,65926.0,0.14902288]
[1727573136293,0.153682,65927.0,65926.0,0.14213066]
[1727573136803,0.153682,65927.0,65926.0,0.14902288]
[1727573137281,0.153682,65927.0,65926.0,0.14213066]
[1727573138249,0.153682,65927.0,65926.0,0.14902288]
[1727573138687,0.153682,65927.0,65926.0,0.14213066]
[1727573139139,0.153682,65927.0,65926.0,0.14902288]
[1727573139364,0.153682,65927.0,65926.0,0.14213066]
[1727573139835,0.153682,65927.0,65926.0,0.14902288]
[1727573140283,0.153682,65927.0,65926.0,0.14213066]
[1727573141175,0.153682,65927.0,65926.0,0.14902288]
[1727573141393,0.153682,65927.0,65926.0,0.14213066]
[1727573141887,0.153682,65927.0,65926.0,0.14902288]
[1727573142371,0.153682,65927.0,65926.0,0.14213066]
[1727573142571,0.153682,65927.0,65926.0,0.14902288]
[1727573142994,0.153682,65927.0,65926.0,0.14213066]
[1727573143498,0.153682,65927.0,65926.0,0.14902288]
[1727573143736,0.002,65927.0,65926.0,0.14902288]
[1727573143982,0.153682,65927.0,65926.0,0.14902288]
[1727573144689,0.002,65927.0,65926.0,0.14902288]
[1727573144916,0.153682,65927.0,65926.0,0.14902288]
[1727573146583,0.002,65927.0,65926.0,0.14902288]
[1727573146795,0.153682,65927.0,65926.0,0.14902288]
[1727573146975,0.002,65927.0,65926.0,0.14902288]
[1727573147502,0.002,65927.0,65926.0,0.38294126]
[1727573147731,0.002,65927.0,65926.0,0.37990788]
[1727573147732,0.00176834,65927.0,65926.0,0.37990788]
[1727573148410,0.00176834,65927.0,65926.0,0.4949202]
[1727573148640,0.00176834,65927.0,65926.0,0.56298927]
[1727573149298,0.00176834,65927.0,65926.0,0.5630322]
[1727573149724,0.00176834,65927.0,65926.0,1.0180822]
[1727573150398,0.00176834,65927.0,65926.0,1.29502948]
[1727573151117,0.00176834,65927.0,65926.0,1.22691748]
[1727573151782,0.00176834,65927.0,65926.0,1.31773948]
[1727573151992,0.00176834,65927.0,65926.0,1.22691748]
[1727573152407,0.00176834,65927.0,65926.0,1.34043748]
[1727573153258,0.00176834,65927.0,65926.0,1.31775527]
[1727573153495,0.00176834,65927.0,65926.0,1.20274295]
[1727573153957,0.00176834,65927.0,65926.0,1.11190516]
[1727573154171,0.00176834,65927.0,65926.0,1.20276874]
[1727573154382,0.00176834,65927.0,65926.0,1.11190516]
[1727573154830,0.00176834,65927.0,65926.0,0.96022016]
[1727573155061,0.00176834,65927.0,65926.0,1.05110635]
[1727573156173,0.00176834,65927.0,65926.0,1.0513882]
[1727573156392,0.00176834,65927.0,65926.0,0.96048176]
[1727573157284,0.00176834,65927.0,65926.0,1.07411481]
[1727573157511,0.00176834,65927.0,65926.0,0.96048176]
[1727573160843,0.00176834,65927.0,65926.0,0.96093825]
[1727573161302,0.15345034,65927.0,65926.0,0.96093825]
[1727573161534,0.15345034,65927.0,65926.0,0.78893825]
[1727573164624,0.15345034,65927.0,65926.0,0.78918577]
[1727573164838,0.15427834,65927.0,65926.0,0.78918577]
[1727573169466,0.15427834,65927.0,65926.0,0.78935753]
[1727573169976,0.15427834,65927.0,65926.0,0.88045422]
[1727573170198,0.15427834,65927.0,65926.0,0.51127288]
[1727573170881,0.15327834,65927.0,65926.0,0.49827288]
[1727573171574,0.15427834,65927.0,65926.0,0.50627288]
[1727573172264,0.15351,65927.0,65926.0,0.49227288]
[1727573172494,0.15451,65927.0,65926.0,0.49927288]
[1727573172908,0.15351,65927.0,65926.0,0.49127288]
[1727573173358,0.15351,65927.0,65926.0,0.49727288]
[1727573173359,0.15451,65927.0,65926.0,0.49727288]
[1727573174054,0.16016614,65927.0,65926.0,0.49727288]
[1727573182882,0.15451,65927.0,65926.0,0.49727288]
[1727573190001,0.38931326,65927.0,65926.0,0.49727288]
[1727573190211,0.56174014,65927.0,65926.0,0.49727288]
[1727573190708,0.56074014,65927.0,65926.0,0.40005188]
[1727573190924,0.55974014,65927.0,65926.0,0.38404755]
[1727573191149,0.56874014,65927.0,65926.0,0.38404755]
[1727573191375,0.57074014,65927.0,65926.0,0.38404755]
[1727573191592,0.56874014,65927.0,65926.0,0.02140267]
[1727573192020,0.56874014,65927.0,65922.0,0.001654]
[1727573192021,0.256692,65923.0,65922.0,0.001654]
[1727573192241,0.70595765,65923.0,65922.0,0.001654]
[1727573192491,0.70228453,65923.0,65922.0,0.001654]
[1727573192922,0.70428453,65923.0,65922.0,0.001654]
[1727573193365,0.71628453,65923.0,65922.0,0.002654]
[1727573193600,0.71628453,65923.0,65922.0,1e-06]
[1727573194493,0.72828453,65923.0,65922.0,0.001001]
[1727573196193,0.72628453,65923.0,65922.0,0.001001]
[1727573196891,0.75007098,65923.0,65922.0,0.001001]
[1727573197082,0.75207098,65923.0,65922.0,0.001001]
[1727573197868,0.75007098,65923.0,65922.0,0.001001]
[1727573199673,0.74507098,65923.0,65922.0,0.002657]
[1727573199905,0.75007098,65923.0,65922.0,0.002657]
[1727573200607,0.74507098,65923.0,65922.0,0.002657]
[1727573201752,0.51749077,65923.0,65922.0,0.002657]
[1727573202454,0.49370432,65923.0,65922.0,0.002657]
[1727573205795,0.51749028,65923.0,65922.0,0.002657]
[1727573206941,0.49370432,65923.0,65922.0,0.002657]
[1727573207858,0.48170432,65923.0,65922.0,0.002656]
[1727573208076,0.62498768,65923.0,65922.0,0.002656]
[1727573208308,0.61398768,65923.0,65922.0,0.002656]
[1727573208527,0.60198768,65923.0,65922.0,0.001656]
[1727573208740,0.61298768,65923.0,65922.0,0.001656]
[1727573209384,0.60198768,65923.0,65922.0,0.001656]
[1727573209616,0.61198768,65923.0,65922.0,0.001656]
[1727573209826,0.64577358,65923.0,65922.0,0.001656]
[1727573213380,0.3184779,65923.0,65922.0,0.001656]
[1727573213591,0.43349022,65923.0,65922.0,0.001656]
[1727573223061,0.43431822,65923.0,65922.0,0.001656]
[1727573227695,0.43091822,65923.0,65922.0,0.001656]
[1727573238073,0.42091822,65923.0,65922.0,0.001656]
[1727573238284,0.53571577,65923.0,65922.0,0.001656]
[1727573238532,0.54471577,65923.0,65922.0,0.001656]
[1727573238749,0.53471577,65923.0,65922.0,0.001656]
[1727573238991,0.54371577,65923.0,65922.0,0.002656]
[1727573239431,0.53471577,65923.0,65922.0,0.001656]
[1727573239883,0.54271577,65923.0,65922.0,0.002656]
[1727573240344,0.53371577,65923.0,65922.0,0.002656]
[1727573240571,0.54171577,65923.0,65922.0,0.002656]
[1727573256894,0.62031577,65923.0,65922.0,0.002656]
[1727573258151,0.73430272,65923.0,65922.0,0.002656]
[1727573258412,0.71051682,65923.0,65922.0,0.002656]
[1727573259105,0.59652987,65923.0,65922.0,0.002656]
[1727573261315,0.62031574,65923.0,65922.0,0.002656]
[1727573261560,0.50530342,65923.0,65922.0,0.002656]
[1727573261789,0.62031574,65923.0,65922.0,0.002656]
[1727573262873,0.59652987,65923.0,65922.0,0.002656]
[1727573266156,0.62031579,65923.0,65922.0,0.002656]
[1727573267238,0.59652987,65923.0,65922.0,0.002656]
[1727573270412,0.62031572,65923.0,65922.0,0.002656]
[1727573273757,0.59652987,65923.0,65922.0,0.002656]
[1727573276735,0.62031575,65923.0,65922.0,0.002656]
[1727573277852,0.59652987,65923.0,65922.0,0.002656]
[1727573281216,0.62031579,65923.0,65922.0,0.002656]
[1727573285110,0.62531579,65923.0,65922.0,0.002656]
[1727573285343,0.71861579,65923.0,65922.0,0.002656]
[1727573285757,0.83259923,65923.0,65922.0,0.002656]
[1727573286176,0.71861579,65923.0,65922.0,0.002656]
[1727573289153,0.69482987,65923.0,65922.0,0.002656]
[1727573289380,0.60152987,65923.0,65922.0,0.002656]
[1727573289834,0.52292987,65923.0,65922.0,0.002656]
[1727573291575,0.63691331,65923.0,65922.0,0.002656]
[1727573294080,0.66069922,65923.0,65922.0,0.002656]
[1727573295398,0.52292987,65923.0,65922.0,0.002656]
[1727573295870,0.63691503,65923.0,65922.0,0.002656]
[1727573299013,0.52292987,65923.0,65922.0,0.002656]
[1727573299687,0.66070089,65923.0,65922.0,0.002656]
[1727573300565,0.66070786,65923.0,65922.0,0.002656]
[1727573301671,0.54671573,65923.0,65922.0,0.002656]
[1727573302086,0.66070786,65923.0,65922.0,0.002656]
[1727573302298,0.75920786,65923.0,65922.0,0.002656]
[1727573302523,0.72291573,65923.0,65922.0,0.002656]
[1727573302750,0.69912987,65923.0,65922.0,0.002656]
[1727573303648,0.123,65912.0,65909.0,0.001654]
[1727573303877,0.38973432,65910.0,65909.0,0.001654]
[1727573304585,0.50363804,65910.0,65909.0,0.001654]
[1727573305214,0.50663804,65910.0,65909.0,0.001654]
[1727573305427,0.50663603,65910.0,65909.0,0.001654]
[1727573305640,0.54912238,65910.0,65909.0,0.001654]
[1727573305853,0.64021268,65910.0,65909.0,0.001654]
[1727573306073,0.48382462,65910.0,65909.0,0.001654]
[1727573306492,0.39473432,65910.0,65909.0,0.001654]
[1727573306920,0.39273432,65910.0,65909.0,0.001654]
[1727573307149,0.38973432,65910.0,65909.0,0.001654]
[1727573307348,0.39673432,65910.0,65909.0,0.001654]
[1727573307577,0.46502393,65910.0,65909.0,0.001654]
[1727573308469,0.47302393,65910.0,65909.0,0.001654]
[1727573309367,0.5306836,65910.0,65909.0,0.001654]
[1727573309583,0.46239399,65910.0,65909.0,0.001654]
[1727573324414,0.48618408,65910.0,65909.0,0.001654]
[1727573325787,0.46239399,65910.0,65909.0,0.001654]
[1727573328944,0.48618413,65910.0,65909.0,0.001654]
[1727573338118,0.42852446,65910.0,65909.0,0.001654]
[1727573339216,0.42152446,65910.0,65909.0,0.001654]
[1727573339429,0.41652446,65910.0,65909.0,0.001654]
[1727573339644,0.42052446,65910.0,65909.0,0.001654]
[1727573348561,0.48880378,65910.0,65909.0,0.001654]
[1727573354629,0.46501364,65910.0,65909.0,0.001654]
[1727573357922,0.48880307,65910.0,65909.0,0.001654]
[1727573358964,0.46501364,65910.0,65909.0,0.001654]
[1727573362379,0.50193485,65910.0,65909.0,0.001654]
[1727573362585,0.46501364,65910.0,65909.0,0.001654]
[1727573363417,0.46510356,65910.0,65909.0,0.001654]
[1727573364317,0.4878933,65910.0,65909.0,0.001654]
[1727573365023,0.39673432,65910.0,65909.0,0.001654]
[1727573365238,0.39173432,65910.0,65909.0,0.001654]
[1727573365677,0.48289966,65910.0,65909.0,0.001654]
[1727573365891,0.39173432,65910.0,65909.0,0.001654]
[1727573366523,0.4829008,65910.0,65909.0,0.001654]
[1727573366973,0.39173432,65910.0,65909.0,0.001654]
[1727573368279,0.48290072,65910.0,65909.0,0.001654]
[1727573368499,0.48290209,65910.0,65909.0,0.001654]
[1727573368727,0.63929015,65910.0,65909.0,0.001654]
[1727573369376,0.54812238,65910.0,65909.0,0.001654]
[1727573369581,0.63929015,65910.0,65909.0,0.001654]
[1727573370021,0.48290209,65910.0,65909.0,0.001654]
[1727573371141,0.39173432,65910.0,65909.0,0.001654]
[1727573379191,0.50571509,65910.0,65909.0,0.001654]
[1727573384830,0.39173432,65910.0,65909.0,0.001654]
[1727573385452,0.50571509,65910.0,65909.0,0.001654]
[1727573387673,0.65809481,65910.0,65909.0,0.001654]
[1727573388317,0.50573231,65910.0,65909.0,0.001654]
[1727573389695,0.39173432,65910.0,65909.0,0.001654]
[1727573390190,0.39256132,65910.0,65909.0,0.001654]
[1727573390401,0.48375857,65910.0,65909.0,0.001654]
[1727573390821,0.48375808,65910.0,65909.0,0.001654]
[1727573391696,0.277549,65910.0,65909.0,0.001654]
[1727573391949,0.48375684,65910.0,65909.0,0.001654]
[1727573392178,0.36874452,65910.0,65909.0,0.001654]
[1727573392452,0.254549,65910.0,65909.0,0.093954]